bitfinex-derivatives/quotes_ETHF0:USTF0_20250520
["timestamp","ask_amount","ask_price","bid_price","bid_amount"]
[1747743027198,8.52756161,2506.1,2506.0,4.33365696]
[1747743027398,9.32531161,2506.1,2506.0,4.33365696]
[1747743027697,9.32531161,2506.1,2506.0,4.65252742]
[1747743028505,5.16499161,2506.1,2506.0,6.64769741]
[1747743028800,5.16499161,2506.1,2506.0,7.44547741]
[1747743029396,5.16499161,2506.1,2506.0,7.44508294]
[1747743030302,3.21379413,2506.1,2506.0,7.44508294]
[1747743030999,3.87147011,2506.6,2506.5,0.79762]
[1747743031304,1.1e-07,2506.6,2506.5,12.69992646]
[1747743031491,1.1e-07,2506.6,2506.5,19.69470146]
[1747743031695,1.1e-07,2506.6,2506.5,21.03780146]
[1747743032096,1.1e-07,2506.6,2506.5,23.77780146]
[1747743032807,1.1e-07,2506.6,2506.5,23.77694596]
[1747743033708,1.1e-07,2506.6,2506.5,24.58617128]
[1747743034104,0.00391455,2506.8,2506.7,0.79756]
[1747743034303,0.00391455,2506.8,2506.7,1.07921096]
[1747743034606,0.00391455,2506.8,2506.7,8.07322497]
[1747743034809,3.2078,2507.3,2507.2,0.7974]
[1747743035107,3.2078,2507.3,2507.2,9.2074]
[1747743035405,3.2078,2507.3,2507.2,11.201615]
[1747743035705,4.00516,2507.3,2507.2,11.201615]
[1747743036210,0.7974,2507.2,2507.1,4.92503]
[1747743036409,2.1614,2507.2,2507.1,13.33403]
[1747743036596,5.202015,2507.3,2507.2,0.7974]
[1747743036597,4.00519,2507.3,2507.2,0.7974]
[1747743036906,3.2078,2507.3,2507.2,2.185]
[1747743037206,5.202015,2507.3,2507.2,2.185]
[1747743037505,3.2078,2507.3,2507.2,4.179215]
[1747743037703,4.00516,2507.3,2507.2,4.179215]
[1747743038504,3.2078,2507.3,2507.2,4.179215]
[1747743041508,4.00516,2507.3,2507.2,4.179215]
[1747743041706,3.2078,2507.3,2507.2,4.179215]
[1747743043798,3.2078,2507.7,2507.4,1.99332]
[1747743044005,3.2078,2508.0,2507.7,0.79724]
[1747743044208,4.00495,2508.0,2507.9,0.79718]
[1747743044402,4.00495,2508.0,2507.9,9.20418]
[1747743044606,4.00495,2508.0,2507.9,11.19783999]
[1747743045108,4.00495,2508.0,2507.9,13.93783999]
[1747743045410,2.09432,2508.1,2508.0,0.79714]
[1747743045611,2.09432,2508.1,2508.0,2.10404]
[1747743046204,2.09432,2508.1,2508.0,4.84404]
[1747743046407,4.08790001,2508.1,2508.0,4.84404]
[1747743048412,4.08790001,2508.1,2508.0,4.0469]
[1747743048600,4.08790001,2508.1,2508.0,2.74]
[1747743048807,4.08790001,2508.1,2508.0,11.145]
[1747743049312,4.08790001,2508.1,2508.0,8.405]
[1747743049518,0.79724,2507.7,2507.6,1.07716945]
[1747743049810,0.79724,2507.7,2507.6,9.48227985]
[1747743050015,0.79724,2507.7,2507.6,11.47617985]
[1747743050512,0.79727,2507.6,2507.5,2.74]
[1747743050705,5.31057,2507.6,2507.5,3.05935367]
[1747743050907,7.30455,2507.6,2507.5,3.85665367]
[1747743051101,2.10277,2507.6,2507.5,3.85665367]
[1747743051306,2.10277,2507.6,2507.5,12.26165367]
[1747743051909,7.30455,2507.6,2507.5,3.05935367]
[1747743052108,7.30455,2507.6,2507.5,0.31935367]
[1747743052914,0.79734,2507.4,2507.3,0.31935367]
[1747743053118,0.79734,2507.4,2507.3,1.39769484]
[1747743053414,2.791475,2507.4,2507.3,0.60032484]
[1747743054316,2.791475,2507.4,2507.3,3.34032484]
[1747743055113,2.791475,2507.4,2507.3,0.60032484]
[1747743056611,2.791475,2507.4,2507.3,0.60265377]
[1747743056822,8.987515,2507.4,2507.0,0.329529]
[1747743057116,4.00523,2507.1,2507.0,0.329529]
[1747743057412,0.79749,2506.9,2506.8,0.48987165]
[1747743057619,0.79756,2506.7,2506.6,0.20576726]
[1747743057819,0.79765,2506.4,2506.3,1.43e-06]
[1747743058021,4.00545,2506.4,2506.3,1.43e-06]
[1747743058218,1.99422,2506.3,2505.5,1.61808423]
[1747743058425,0.79791,2505.6,2505.5,1.61808423]
[1747743058618,0.79794,2505.5,2505.4,8.398]
[1747743058820,4.00574,2505.5,2505.4,8.398]
[1747743059016,6.00139,2505.5,2505.4,8.398]
[1747743059322,6.00139,2505.5,2505.4,11.138]
[1747743059519,5.20345,2505.5,2505.4,11.93597]
[1747743059723,5.20345,2505.5,2505.4,13.31177]
[1747743060022,0.79792,2505.6,2505.5,0.79792]
[1747743060219,0.79792,2505.6,2505.5,2.17372]
[1747743060423,1.3514,2505.7,2505.6,0.79791]
[1747743060620,3.2078,2506.2,2505.8,1.99459]
[1747743060817,3.2078,2506.2,2506.1,0.79775]
[1747743061218,3.2078,2506.2,2506.1,2.79284]
[1747743061219,4.00552,2506.2,2506.1,2.79284]
[1747743061719,4.00552,2506.2,2506.1,4.16864]
[1747743061929,3.2078,2506.2,2506.1,4.16864]
[1747743062433,4.00552,2506.2,2506.1,1.3758]
[1747743062628,0.79775,2506.1,2506.0,11.14]
[1747743062825,2.10535,2506.1,2506.0,11.93778]
[1747743063122,4.10052,2506.1,2506.0,11.93778]
[1747743063324,4.10052,2506.1,2506.0,13.13516999]
[1747743063325,2.10535,2506.1,2506.0,13.13516999]
[1747743063521,4.10052,2506.1,2506.0,11.14]
[1747743064832,4.10052,2506.1,2506.0,11.22486477]
[1747743066125,1.99517,2506.1,2506.0,12.02264477]
[1747743066521,2.79292,2506.1,2506.0,2.82486477]
[1747743066825,4.17262,2506.1,2506.0,2.82486477]
[1747743067220,9.17262,2506.1,2506.0,2.82486477]
[1747743067425,0.79797,2505.4,2505.3,8.40698217]
[1747743067731,0.79797,2505.4,2505.3,9.20498217]
[1747743067931,2.7937,2505.4,2505.3,8.40698217]
[1747743068127,2.7937,2505.4,2505.3,11.14698217]
[1747743068328,0.79797,2505.4,2505.3,11.14698217]
[1747743068527,4.00576,2505.5,2505.4,0.79797]
[1747743068726,6.00145001,2505.5,2505.4,2.18927]
[1747743068927,6.00145001,2505.5,2505.4,1.3913]
[1747743069133,6.00145001,2505.5,2505.4,4.1313]
[1747743070033,6.00145001,2505.5,2505.4,2.74]
[1747743070234,0.79797,2505.4,2505.3,0.00598217]
[1747743070423,2.79607,2505.4,2505.3,0.00598217]
[1747743070623,4.7918,2505.4,2505.3,0.00598217]
[1747743071236,4.7918,2505.4,2505.3,2.74598217]
[1747743072638,3.2078,2505.5,2505.4,0.79797]
[1747743072938,3.2078,2505.5,2505.4,2.10427]
[1747743073127,4.00574,2505.5,2505.4,6.83992]
[1747743073431,4.00574,2505.5,2505.4,6.04195]
[1747743073729,6.00139,2505.5,2505.4,2.74]
[1747743074129,0.79797,2505.4,2505.3,0.00598217]
[1747743074329,2.76357,2505.4,2505.3,0.00598217]
[1747743074630,4.7593,2505.4,2505.3,0.00598217]
[1747743075131,9.7593,2505.4,2505.3,0.00598217]
[1747743075632,9.7593,2505.4,2505.3,2.74598217]
[1747743076236,9.7593,2505.4,2505.3,0.00598217]
[1747743076536,0.79807,2505.1,2505.0,8.403]
[1747743076734,4.00587,2505.1,2505.0,8.403]
[1747743077039,6.00184001,2505.1,2505.0,8.403]
[1747743077238,3.2078,2505.1,2505.0,15.20247]
[1747743077736,4.00587,2505.1,2505.0,15.20247]
[1747743077940,4.00587,2505.1,2505.0,14.40437]
[1747743078439,4.00587,2505.1,2505.0,15.20247]
[1747743079139,3.2078,2505.1,2505.0,15.20247]
[1747743079840,3.2078,2505.1,2505.0,15.28733477]
[1747743081631,0.00598217,2505.3,2505.2,0.79804]
[1747743081941,2.17e-06,2505.3,2505.2,6.00165]
[1747743082141,3.2078,2505.7,2505.6,0.79791]
[1747743082341,3.2078,2505.7,2505.6,9.20191]
[1747743082534,3.2078,2505.7,2505.6,11.19739999]
[1747743082836,0.6615,2506.4,2505.6,11.19739999]
[1747743083036,5.86451001,2506.4,2506.0,0.79778]
[1747743083242,0.79772,2506.3,2506.2,0.79772]
[1747743083637,6.99501,2506.3,2505.5,2.74]
[1747743083837,3.2078,2505.6,2505.5,2.74]
[1747743084141,3.2078,2506.1,2505.5,3.53794]
[1747743084439,7.19758,2506.1,2505.6,9.52106906]
[1747743084743,0.79788,2505.7,2505.6,8.72317906]
[1747743084943,0.79787,2505.8,2505.6,8.72317906]
[1747743085135,0.79787,2505.8,2505.6,9.52106906]
[1747743085136,0.79788,2505.7,2505.6,9.52106906]
[1747743085336,0.79788,2505.7,2505.6,8.72317906]
[1747743085840,2.79337,2505.7,2505.6,8.72317906]
[1747743086950,2.79337,2505.7,2505.6,9.52108906]
[1747743087442,2.79337,2505.7,2505.6,8.72317906]
[1747743087646,2.79337,2505.7,2505.6,9.05113259]
[1747743088842,5.38736,2505.8,2505.6,9.05113259]
[1747743089048,3.2078,2505.8,2505.7,0.79788]
[1747743089248,0.79783,2505.9,2505.8,0.79784]
[1747743089645,2.79316,2505.9,2505.8,0.79784]
[1747743089947,3.2078,2506.1,2506.0,0.79778]
[1747743090145,4.00555,2506.1,2506.0,11.93478]
[1747743090345,6.00072,2506.1,2506.0,12.2210282]
[1747743090746,6.00072,2506.1,2506.0,12.22100115]
[1747743091147,3.2078,2506.1,2506.0,12.86813374]
[1747743091451,3.2078,2506.1,2506.0,12.86857374]
[1747743091641,0.79775,2506.1,2506.0,14.86374373]
[1747743092043,0.79773,2506.2,2506.1,0.79772]
[1747743092244,0.79773,2506.2,2506.1,1.08438115]
[1747743092645,0.79773,2506.2,2506.1,1.40356021]
[1747743093050,0.79773,2506.2,2506.1,1.40354693]
[1747743093757,0.79773,2506.2,2506.1,0.60582693]
[1747743094349,0.79773,2506.2,2506.1,1.40357693]
[1747743096051,0.79773,2506.2,2506.1,1.4884417]
[1747743096451,0.79773,2506.2,2506.1,2.8083417]
[1747743097047,0.79773,2506.2,2506.1,2.0105917]
[1747743097442,0.79773,2506.2,2506.1,2.8083417]
[1747743097752,3.2078,2506.3,2506.2,0.79772]
[1747743098048,3.2078,2506.3,2506.2,1.08436787]
[1747743098252,3.2078,2506.3,2506.2,3.07916237]
[1747743099451,3.2078,2506.3,2506.2,11.47516237]
[1747743099849,3.2078,2506.3,2506.2,11.18873]
[1747743100045,3.2078,2506.3,2506.2,11.47504186]
[1747743100646,3.2078,2506.3,2506.2,12.12217445]
[1747743101456,0.00595429,2506.5,2506.4,0.79765]
[1747743101654,0.00595429,2506.5,2506.4,1.08381363]
[1747743101948,0.00595429,2506.5,2506.4,3.39784271]
[1747743102153,0.00595429,2506.5,2506.4,7.46184271]
[1747743102453,0.00595429,2506.5,2506.4,8.82024271]
[1747743103354,3.2078,2506.9,2506.4,13.02242114]
[1747743103551,0.98882825,2507.3,2507.2,0.7974]
[1747743103754,0.98882825,2507.3,2507.2,9.47938708]
[1747743103955,0.98882825,2507.3,2507.2,11.47360208]
[1747743105057,0.98882825,2507.3,2507.2,11.47293944]
[1747743105650,3.2078,2507.6,2507.5,0.7973]
[1747743105851,3.2078,2507.6,2507.5,1.08262444]
[1747743106153,4.00507,2507.6,2507.5,3.02532444]
[1747743106354,5.99905,2507.6,2507.5,3.02532444]
[1747743106846,5.99905,2507.6,2507.5,3.02512582]
[1747743107157,5.99905,2507.6,2507.5,0.28512582]
[1747743110157,5.99905,2507.6,2507.2,8.395]
[1747743110158,0.79737,2507.3,2507.2,8.395]
[1747743110356,4.00517,2507.3,2507.2,8.68037896]
[1747743110556,4.00517,2507.3,2507.2,11.47199396]
[1747743111561,4.00517,2507.3,2507.2,12.84959396]
[1747743111774,4.00517,2507.3,2507.2,13.16857589]
[1747743113470,4.00517,2507.3,2507.2,13.16874801]
[1747743113659,0.79737,2507.3,2507.2,13.16874801]
[1747743113860,0.79737,2507.3,2507.2,12.37134801]
[1747743114061,4.00517,2507.3,2507.2,12.37134801]
[1747743115172,0.79737,2507.3,2507.2,12.37135876]
[1747743116268,4.00517,2507.3,2507.2,12.37135876]
[1747743116466,5.999385,2507.3,2507.2,8.98654376]
[1747743116668,2.791585,2507.3,2507.2,8.98654376]
[1747743116859,0.79737,2507.3,2507.2,11.77815876]
[1747743117057,0.79736,2507.4,2507.3,0.79734]
[1747743117266,0.79736,2507.4,2507.3,5.17223904]
[1747743117464,2.791495,2507.4,2507.3,5.17223904]
[1747743118071,3.2078,2507.6,2507.3,6.36903404]
[1747743118262,4.00509,2507.6,2507.5,0.7973]
[1747743118569,3.2078,2507.6,2507.5,1.16776381]
[1747743118768,3.2078,2507.6,2507.5,4.51104381]
[1747743119167,3.2078,2507.6,2507.5,7.57002494]
[1747743120366,3.2078,2507.6,2507.5,7.81530226]
[1747743120762,4.00507,2507.6,2507.5,7.81530226]
[1747743120963,4.00507,2507.6,2507.5,7.01800226]
[1747743121268,4.00507,2507.6,2507.5,13.40602226]
[1747743121474,5.99905,2507.6,2507.5,12.05672226]
[1747743121770,5.99905,2507.6,2507.5,12.05685815]
[1747743122173,5.99905,2507.6,2507.5,9.31685815]
[1747743122373,5.99905,2507.6,2507.5,8.75268499]
[1747743123172,5.99905,2507.6,2507.5,8.7528465]
[1747743124569,10.99905,2507.6,2507.5,0.3708465]
[1747743125671,0.79737,2507.3,2507.2,0.24519203]
[1747743125859,0.79737,2507.3,2507.2,2.03e-06]
[1747743125860,4.00517,2507.3,2507.2,2.03e-06]
[1747743126068,10.999385,2507.3,2507.2,2.03e-06]
[1747743126783,0.79746,2507.0,2506.9,8.382]
[1747743126974,4.00526,2507.0,2506.9,8.382]
[1747743127274,5.999715,2507.0,2506.9,8.382]
[1747743127974,5.999715,2507.0,2506.9,8.70106982]
[1747743128176,10.999715,2507.0,2506.9,0.31906982]
[1747743128573,18.202215,2507.0,2506.9,9.82e-06]
[1747743128768,18.879215,2507.0,2506.9,9.82e-06]
[1747743129269,1.99376,2506.9,2506.5,8.382]
[1747743129471,4.00539,2506.6,2506.5,8.382]
[1747743129769,0.79769,2506.3,2506.2,0.33273945]
[1747743129973,4.00549,2506.3,2506.2,9.45e-06]
[1747743130174,11.0005,2506.3,2506.2,9.45e-06]
[1747743130969,12.19704,2506.3,2506.0,0.00598217]
[1747743131169,0.79775,2506.1,2506.0,0.00598217]
[1747743131575,2.79292,2506.1,2506.0,0.00598217]
[1747743135774,2.79292,2506.1,2506.0,9.18876217]
[1747743135977,3.2078,2506.3,2506.0,10.38615216]
[1747743136177,0.79774,2506.2,2506.1,2.71654]
[1747743136373,0.79774,2506.2,2506.1,0.6612]
[1747743136578,3.2078,2506.3,2506.1,4.13683]
[1747743136778,0.79772,2506.2,2506.1,2.14174]
[1747743137180,0.79772,2506.2,2506.1,4.13683]
[1747743137376,0.79772,2506.2,2506.1,4.13684]
[1747743137678,0.79772,2506.2,2506.1,1.344]
[1747743137884,0.79772,2506.2,2506.1,4.13684]
[1747743139781,3.2078,2506.3,2506.2,0.79772]
[1747743140178,3.2078,2506.3,2506.2,2.79273]
[1747743140877,3.2078,2506.3,2506.2,8.11184238]
[1747743141795,3.2078,2506.3,2506.2,6.11683238]
[1747743141990,3.2078,2506.3,2506.2,8.11184238]
[1747743144086,3.2078,2506.3,2506.2,3.11184238]
[1747743144389,3.2078,2506.3,2506.2,11.49684238]
[1747743144590,3.2078,2506.3,2506.2,3.11184238]
[1747743144789,4.00549,2506.3,2506.2,10.69912238]
[1747743145091,4.00549,2506.3,2506.2,8.70411238]
[1747743145290,4.00549,2506.3,2506.2,10.69912238]
[1747743145590,4.00549,2506.3,2506.2,8.70411238]
[1747743146094,6.0005,2506.3,2506.2,8.70411238]
[1747743146992,7.3577,2506.3,2506.2,8.70411238]
[1747743149091,7.3577,2506.3,2506.2,8.385]
[1747743151492,0.79772,2506.2,2506.1,0.08486477]
[1747743151696,2.17402,2506.2,2506.1,8.45586477]
[1747743151895,4.16911,2506.2,2506.1,8.45586477]
[1747743154493,4.16911,2506.2,2506.1,8.7750349]
[1747743155097,7.37691,2506.2,2506.1,8.7750349]
[1747743157695,7.37691,2506.2,2506.1,10.0984349]
[1747743158499,7.37691,2506.2,2506.1,0.4040349]
[1747743161098,6.00061,2506.2,2506.1,2.5974849]
[1747743162702,6.00061,2506.2,2506.1,2.88655286]
[1747743163197,6.00061,2506.2,2506.1,2.08880286]
[1747743163590,6.00061,2506.2,2506.1,0.69310286]
[1747743163797,6.00061,2506.2,2506.1,0.69359492]
[1747743164990,11.00061,2506.2,2506.1,0.69359492]
[1747743166109,6.00061,2506.2,2506.1,0.69359492]
[1747743166605,6.00061,2506.2,2506.1,2.00149492]
[1747743167806,3.2078,2506.2,2506.1,11.17224492]
[1747743167995,3.2078,2506.2,2506.1,12.48384492]
[1747743168402,3.2078,2506.2,2506.1,14.47893492]
[1747743168597,0.79768,2506.4,2506.3,0.79769]
[1747743168808,0.79768,2506.4,2506.3,3.08219413]
[1747743169107,0.79768,2506.4,2506.3,5.82219413]
[1747743170299,0.79768,2506.4,2506.3,6.47080367]
[1747743170506,0.79768,2506.4,2506.3,6.47079794]
[1747743171008,0.79768,2506.4,2506.3,6.47079573]
[1747743175211,0.79768,2506.4,2506.3,6.96100573]
[1747743175712,0.79768,2506.4,2506.3,6.96149077]
[1747743176013,0.79768,2506.4,2506.3,7.75918077]
[1747743176208,4.67277647,2506.5,2506.4,0.79765]
[1747743176513,0.66732647,2506.5,2506.4,2.37559623]
[1747743176709,0.1886932,2506.5,2506.4,4.37045123]
[1747743177104,0.1886932,2506.5,2506.4,7.11045123]
[1747743177304,0.1886932,2506.5,2506.4,7.11037488]
[1747743178012,4.00541,2506.6,2506.5,0.79762]
[1747743178202,4.00541,2506.6,2506.5,2.34708988]
[1747743178507,6.000185,2506.6,2506.5,9.90346988]
[1747743179005,6.000185,2506.6,2506.5,9.90341529]
[1747743179612,7.274785,2506.6,2506.5,9.90341529]
[1747743179907,7.274785,2506.6,2506.5,10.55213719]
[1747743180514,4.00541,2506.6,2506.5,11.34975719]
[1747743180716,4.00541,2506.6,2506.5,13.34453219]
[1747743181011,3.2078,2506.6,2506.5,13.34453219]
[1747743181213,4.00539,2506.6,2506.5,16.08453219]
[1747743182115,3.2078,2506.6,2506.5,16.08453219]
[1747743182415,4.00539,2506.6,2506.5,16.08453219]
[1747743182616,4.00539,2506.6,2506.5,16.72643219]
[1747743184015,4.00539,2506.6,2506.5,15.92881219]
[1747743184213,4.00539,2506.6,2506.5,13.18881219]
[1747743184514,0.79759,2506.6,2506.5,13.18881219]
[1747743184714,4.00539,2506.6,2506.5,11.19303719]
[1747743185117,4.00539,2506.6,2506.5,13.93303719]
[1747743185317,6.000165,2506.6,2506.5,3.67863719]
[1747743185510,6.000165,2506.6,2506.5,3.76350196]
[1747743185817,11.000165,2506.6,2506.5,3.76350196]
[1747743186116,11.000165,2506.6,2506.5,1.02350196]
[1747743186708,11.000165,2506.6,2506.5,0.37478006]
[1747743186915,11.000165,2506.6,2506.5,0.37460772]
[1747743187517,6.000165,2506.6,2506.5,0.37460772]
[1747743188716,6.000165,2506.6,2506.5,0.37467916]
[1747743191213,6.99720985,2506.6,2506.5,0.37467916]
[1747743191409,6.19961985,2506.6,2506.5,8.72867916]
[1747743191619,0.99704485,2506.6,2506.5,11.84020067]
[1747743191811,0.51845194,2506.6,2506.5,11.84020067]
[1747743192017,0.12960195,2506.6,2506.5,13.21538353]
[1747743192208,0.12960195,2506.6,2506.5,15.95538353]
[1747743192409,0.12960195,2506.6,2506.5,19.16318353]
[1747743193822,4.51996748,2506.9,2506.8,0.79753]
[1747743194016,4.51996748,2506.9,2506.8,6.08722725]
[1747743194221,4.51996748,2506.9,2506.8,10.82176225]
[1747743194618,4.51996748,2506.9,2506.8,12.81706225]
[1747743195422,4.51996748,2506.9,2506.8,7.816698]
[1747743195826,3.2078,2506.9,2506.8,8.13582451]
[1747743197027,3.2078,2506.9,2506.8,8.13595679]
[1747743197928,0.79743,2507.2,2507.1,0.7974]
[1747743198223,0.79743,2507.2,2507.1,9.43986528]
[1747743198426,0.79743,2507.2,2507.1,11.43416028]
[1747743198721,0.79743,2507.2,2507.1,11.144695]
[1747743198926,0.79743,2507.2,2507.1,11.43404736]
[1747743199718,0.79743,2507.2,2507.1,14.13746061]
[1747743200429,0.79743,2507.2,2507.1,14.1373224]
[1747743200629,0.79743,2507.2,2507.1,14.22218717]
[1747743201531,0.79743,2507.2,2507.1,13.42478717]
[1747743201729,0.79743,2507.2,2507.1,11.43049217]
[1747743201929,0.79743,2507.2,2507.1,13.42478717]
[1747743203737,0.79743,2507.2,2507.1,14.22221717]
[1747743204229,0.79743,2507.2,2507.1,13.42478717]
[1747743204528,0.79743,2507.2,2507.1,13.34226971]
[1747743205326,0.79743,2507.2,2507.1,14.13969971]
[1747743205525,4.00523,2507.2,2507.1,13.34215284]
[1747743206234,4.00523,2507.2,2507.1,13.34015284]
[1747743207536,4.00523,2507.2,2507.1,14.13758284]
[1747743207833,4.00523,2507.2,2507.1,13.34015284]
[1747743210633,4.00523,2507.2,2507.1,13.05105556]
[1747743210839,4.00523,2507.2,2507.1,13.34016254]
[1747743211640,4.00523,2507.2,2507.1,14.13759254]
[1747743212043,4.00523,2507.2,2507.1,12.06429254]
[1747743212243,4.00523,2507.2,2507.1,13.40739254]
[1747743212438,4.00523,2507.2,2507.1,12.60996137]
[1747743212743,10.999525,2507.2,2507.1,0.93956637]
[1747743212934,0.79743,2507.1,2507.0,1.89917674]
[1747743213241,0.79746,2507.0,2506.9,2.44e-06]
[1747743213738,9.112815,2507.0,2506.9,2.44e-06]
[1747743213937,8.315355,2507.0,2506.6,7.71e-06]
[1747743214244,4.00536,2506.7,2506.6,7.71e-06]
[1747743214545,0.79765,2506.4,2506.3,8.333]
[1747743214740,4.00545,2506.4,2506.3,8.333]
[1747743214941,6.000385,2506.4,2506.3,8.333]
[1747743220952,6.000385,2506.4,2506.3,9.5975]
[1747743221148,6.000385,2506.4,2506.3,8.333]
[1747743224860,6.000385,2506.4,2506.3,8.65213344]
[1747743227860,6.000385,2506.4,2506.3,9.93143344]
[1747743230058,6.000385,2506.4,2506.3,10.01629821]
[1747743232865,6.000385,2506.4,2506.3,10.81398821]
[1747743233268,6.000385,2506.4,2506.3,12.75629821]
[1747743234465,6.000385,2506.4,2506.3,5.22098821]
[1747743234666,6.000385,2506.4,2506.3,13.55598821]
[1747743234866,6.000385,2506.4,2506.3,12.75829821]
[1747743235569,6.000385,2506.4,2506.3,13.55598821]
[1747743236070,4.00545,2506.4,2506.3,13.55598821]
[1747743236274,6.000385,2506.4,2506.3,13.55598821]
[1747743237174,6.000385,2506.4,2506.3,10.81598821]
[1747743237683,3.2078,2506.4,2506.3,12.81092321]
[1747743237975,0.79748,2507.0,2506.3,24.20939321]
[1747743238167,4.00527,2507.1,2507.0,0.79746]
[1747743238471,3.30564748,2507.3,2507.2,0.7974]
[1747743238472,1.31216748,2507.3,2507.2,0.7974]
[1747743238970,1.31216748,2507.3,2507.2,7.791615]
[1747743239177,0.92345758,2507.3,2507.2,7.791615]
[1747743239474,0.92345758,2507.3,2507.2,8.10103118]
[1747743239671,1.64030524,2507.5,2507.4,0.79734]
[1747743239870,1.32565944,2507.9,2507.8,0.79721]
[1747743240063,1.32565944,2507.9,2507.8,9.41968124]
[1747743240373,1.32565944,2507.9,2507.8,11.41463427]
[1747743240771,1.32565944,2507.9,2507.8,12.74743427]
[1747743241168,1.64030524,2508.1,2508.0,0.79714]
[1747743241473,1.64030524,2508.1,2508.0,3.10140427]
[1747743242373,1.64030524,2508.1,2508.0,5.84117092]
[1747743242567,4.00483,2508.4,2508.3,0.79705]
[1747743242774,4.00483,2508.4,2508.3,8.62245092]
[1747743243877,5.99817,2508.4,2508.3,8.62245092]
[1747743244176,5.99817,2508.4,2508.3,0.31045092]
[1747743244378,5.99817,2508.4,2508.3,8.62245092]
[1747743244575,5.99817,2508.4,2508.3,0.31045092]
[1747743244876,5.99817,2508.4,2508.3,8.62245092]
[1747743245376,5.99817,2508.4,2508.3,0.31045092]
[1747743245674,0.79711,2508.1,2508.0,8.311]
[1747743245977,4.00491,2508.1,2508.0,8.311]
[1747743246174,0.79724,2507.7,2507.6,0.33358855]
[1747743246378,0.79724,2507.7,2507.6,8.95389927]
[1747743246579,2.79114,2507.7,2507.6,8.95389927]
[1747743246783,2.16254,2507.7,2507.6,8.95389927]
[1747743247083,2.16254,2507.7,2507.6,8.62629289]
[1747743247381,2.16254,2507.7,2507.6,9.42356289]
[1747743247584,4.00503,2507.8,2507.7,0.79724]
[1747743247782,5.99889001,2507.8,2507.7,2.38445072]
[1747743248375,3.2078,2508.1,2507.8,0.79721]
[1747743248585,0.79714,2508.0,2507.9,0.30931072]
[1747743249081,0.79714,2508.0,2507.7,2.07514]
[1747743249082,0.79721,2507.8,2507.7,2.07514]
[1747743249277,0.79721,2507.8,2507.7,2.38431496]
[1747743249476,0.79721,2507.8,2507.7,3.58089496]
[1747743249777,4.00501,2507.8,2507.7,3.58089496]
[1747743250277,5.99883,2507.8,2507.7,0.30917496]
[1747743250586,0.79724,2507.7,2507.6,8.31698217]
[1747743250776,2.13834,2507.7,2507.6,8.31698217]
[1747743250976,4.13224,2507.7,2507.6,8.31698217]
[1747743252483,4.79144,2507.7,2507.6,8.62617399]
[1747743257587,4.79144,2507.7,2507.6,8.62640877]
[1747743259182,4.79144,2507.7,2507.6,8.62647479]
[1747743259583,4.79144,2507.7,2507.6,8.71133956]
[1747743262587,4.79144,2507.7,2507.6,8.71179531]
[1747743263286,4.79144,2507.7,2507.6,10.04159531]
[1747743264083,4.79144,2507.7,2507.6,10.04174374]
[1747743264289,4.79144,2507.7,2507.6,10.04188368]
[1747743265287,4.79144,2507.7,2507.6,8.71208368]
[1747743265488,5.42904,2507.7,2507.6,8.71108368]
[1747743265994,5.42904,2507.7,2507.6,8.71134443]
[1747743266491,5.42904,2507.7,2507.6,9.03033476]
[1747743266687,5.42904,2507.7,2507.2,0.32760638]
[1747743266688,0.79737,2507.3,2507.2,0.32760638]
[1747743266889,4.00517,2507.3,2507.2,0.63837665]
[1747743267194,5.999385,2507.3,2507.2,0.63837665]
[1747743268192,8.739385,2507.3,2507.2,0.63837665]
[1747743268592,8.739385,2507.3,2507.2,0.31077027]
[1747743268892,9.06455255,2507.3,2507.2,0.31077027]
[1747743269391,0.79743,2507.1,2507.0,0.00598217]
[1747743269786,2.79180501,2507.1,2507.0,0.00598217]
[1747743269985,4.77770501,2507.1,2507.0,0.00598217]
[1747743274795,4.77770501,2507.1,2507.0,0.09084694]
[1747743278692,4.77770501,2507.1,2507.0,0.39165969]
[1747743280003,7.98550501,2507.1,2507.0,0.39165969]
[1747743280501,7.98550501,2507.1,2507.0,0.71072652]
[1747743282299,0.79753,2506.8,2506.7,8.53765952]
[1747743282500,4.00533,2506.8,2506.7,8.53765952]
[1747743282705,5.999945,2506.8,2506.7,8.291]
[1747743286595,4.00533,2506.8,2506.7,10.285615]
[1747743287906,3.8742,2507.1,2506.7,10.285615]
[1747743288206,3.2078,2507.1,2506.8,1.9651]
[1747743288399,3.2078,2507.1,2507.0,0.79746]
[1747743288803,3.2078,2507.1,2507.0,7.791835]
[1747743289004,3.2078,2507.1,2507.0,7.87669977]
[1747743289200,3.2078,2507.1,2507.0,10.61669977]
[1747743289404,4.00515,2507.4,2507.1,0.7974]
[1747743289603,4.00515,2507.4,2507.2,10.3736]
[1747743289802,3.2078,2507.4,2507.3,2.08157]
[1747743290002,3.2078,2507.4,2507.3,2.76247]
[1747743290206,4.00513,2507.4,2507.3,6.699235]
[1747743291105,4.00513,2507.4,2507.3,3.959235]
[1747743291810,4.00513,2507.4,2507.3,4.20584539]
[1747743294217,4.00513,2507.4,2507.3,12.78782086]
[1747743294819,4.00513,2507.4,2507.3,12.78787416]
[1747743295623,3.2078,2507.4,2507.3,13.58524416]
[1747743295929,4.00513,2507.4,2507.3,12.78787416]
[1747743296120,4.00513,2507.4,2507.3,15.84686889]
[1747743296524,4.00513,2507.4,2507.3,15.84690749]
[1747743297229,4.00513,2507.4,2507.3,13.90427749]
[1747743297420,4.00513,2507.4,2507.3,13.10690749]
[1747743297620,4.00513,2507.4,2507.3,13.18918775]
[1747743298124,4.00513,2507.4,2507.3,15.92918775]
[1747743298324,4.00513,2507.4,2507.3,15.92914684]
[1747743299027,4.00513,2507.4,2507.3,15.60025619]
[1747743299724,4.00513,2507.4,2507.3,15.60019628]
[1747743300326,4.00513,2507.4,2507.3,13.65755628]
[1747743300528,4.00513,2507.4,2507.3,12.86019628]
[1747743300931,4.00513,2507.4,2507.3,13.90421709]
[1747743301421,4.00513,2507.4,2507.3,13.90419072]
[1747743302334,3.2078,2507.4,2507.3,13.90415648]
[1747743302720,3.2078,2507.4,2507.3,13.65746191]